Cogmind - Beta 16 @@@ ROGUE MODE // 2026.01.22 @ 16:38:06 Player: AngelSpirit Result: Destroyed by Y-45 Defender with Beam Rifle Performance ------------- Evolutions (0) 0 Regions Visited (2) 400 Robots Destroyed (33) 165 Value Destroyed (724) 724 Prototype IDs (0) 0 Alien Tech Used (0) 0 Bonus (0) 0 TOTAL SCORE: 1289 Bonus ------- None Cogmind --------- Core Integrity 0/250 Matter 252/300 Energy 164/200 System Corruption 0% Temperature Cool (9) Movement Rolling (150) Ox4 Location -10/Subcaves Parts ------- > --- POWER (1) -------- Subdweller Power Source > --- PROPULSION (2) --- Armored Wheel Armored Wheel > --- UTILITY (2) ------ Huge Storage Unit Makeshift Light Armor Plating > --- WEAPON (2) ------- Subdweller Beam Cannon Subdweller Machine Gun > --- INVENTORY (25) --- Light Ion Engine Armored Wheel Armored Wheel Seismic Detector Makeshift Hacking Suite Subdweller Laser Autogun Autogun Autogun Autogun Battle Cannon Grenade Launcher Flail Flail Piercing Trap Peak State ------------ > --- POWER ------------ Subdweller Power Source > --- PROPULSION ------- Armored Wheel Armored Wheel > --- UTILITY ---------- Huge Storage Unit Makeshift Light Armor Plating > --- WEAPON ----------- Subdweller Laser Battle Cannon > --- INVENTORY -------- Light Ion Engine Subdweller Power Source Armored Wheel Armored Wheel Seismic Detector Makeshift Hacking Suite Autogun Autogun Autogun Autogun Subdweller Machine Gun Battle Cannon Grenade Launcher Flail Flail Piercing Trap [Rating: 18] Favorites ----------- Power Ion Engine Engine Ion Engine Propulsion Armored Wheel Wheel Armored Wheel Utility Huge Storage Unit Device Seismic Detector Storage Huge Storage Unit Protection Backup Plating I Weapon Light Assault Rifle Energy Gun Subdweller Laser Energy Cannon Subdweller Beam Cannon Ballistic Gun Light Assault Rifle Ballistic Cannon Battle Cannon Launcher Grenade Launcher Build | -11 -10 -10 ------- Run | Yrd Mat Sub Slots Evolved . | . . . Power . | . . . Propulsion . | . . . Utility . | . . . Weapon . | . . . Parts Attached 30 | 7 12 11 Power 3 | 1 . 2 Engine 3 | 1 . 2 Core . | . . . Reactor . | . . . Propulsion 6 | 2 4 . Treads . | . . . Leg . | . . . Wheel 6 | 2 4 . Hover . | . . . Flight . | . . . Utility 7 | 2 3 2 Device 1 | 1 . . Storage 2 | 1 1 . Processor . | . . . Hackware . | . . . Protection 4 | . 2 2 Artifact . | . . . Weapon 14 | 2 5 7 Energy Gun 2 | . . 2 Energy Cannon 1 | . . 1 Ballistic Gun 8 | 2 4 2 Ballistic Cannon 2 | . . 2 Launcher 1 | . 1 . Special Weapon . | . . . Impact Weapon . | . . . Slashing Weapon . | . . . Piercing Weapon . | . . . Special Melee Weapon . | . . . Unidentified Prototypes . | . . . Parts Lost 5 | . 2 3 Power 1 | . . 1 Propulsion 1 | . 1 . Utility 2 | . 1 1 Weapon 1 | . . 1 Highest Loss Streak 3 | . 1 3 To Critical Strikes . | . . . Average Backups 10 | . 7 13 Power 1 | . . 1 Propulsion 1 | . . 2 Utility 2 | . 3 2 Weapon 5 | . 3 7 Tool/Special . | . . . Unused Backups 13 | . 4 9 Power 1 | . . 1 Propulsion 2 | . . 2 Utility 1 | . . 1 Weapon 9 | . 4 5 Tool/Special . | . . . Average Slot Usage (%) 99 | . 99 99 Engine 13 | . 14 13 Wheel 27 | . 27 28 Device 10 | . 9 11 Storage 14 | . 14 14 Protection 3 | . 4 2 Energy Gun 1 | . . 2 Ballistic Gun 20 | . 27 14 Ballistic Cannon 5 | . . 10 Peak Build Rating 18 | 7 13 18 Average Rating 10 | 5 7 13 On Entrance 6 | . 7 12 Avg Prop Armor Cover (%) . | . . . Naked Turns . | . . . Heaviest Build 98 | 13 92 98 Greatest Support 32 | 32 32 24 Greatest Overweight (x) 7 | . 7 4 Average Overweight (x) 2 | . 2 3 Largest Inventory Capacity 25 | 8 25 25 Average Capacity 24 | 7 23 25 Most Carried 16 | 1 16 16 Average Carried 10 | . 7 14 Final Capacity 25 | 8 25 25 Final Carried 15 | 1 12 15 Class Distribution -------------------- 88% | Mutant 11% | Scavenger-Mutant Dominant Class ---------------- Mutant | -10/Materials Mutant | -10/Subcaves Resources | -11 -10 -10 ----------- Run | Yrd Mat Sub Matter Collected 1038 | 199 415 424 Remotely . | . . . Salvage Created 868 | 13 586 269 Parts 69 | 3 49 17 Haulers Intercepted 2 | . 2 . Recyclers Shooed . | . . . Parts Field Recycled . | . . . Retrieved Matter . | . . . Parts Self-Destructed 2 | . . 2 Prevented . | . . . Parts Restored . | . . . Kills | -11 -10 -10 ------- Run | Yrd Mat Sub Combat Hostiles Destroyed 22 | . 15 7 Guns 12 | . 8 4 Cannons 3 | . . 3 AOE 7 | . 7 . Classes Destroyed 9 | 1 7 1 Worker 3 | . 3 . Builder 1 | . 1 . Tunneler 1 | 1 . . Hauler 2 | . 2 . Recycler 1 | . 1 . Watcher 3 | . 3 . Swarmer 8 | . 8 . Grunt 7 | . 7 . Subdweller 7 | . . 7 Best Kill Streak 7 | 1 7 2 Combat Bots Only 4 | . 4 2 Max Kills in Single Turn 5 | 1 5 1 Gunslinging . | . . . Exploded 2 | . 2 . Melee . | . . . Uniques/NPCs Destroyed . | . . . Combat | -11 -10 -10 -------- Run | Yrd Mat Sub Hostile Shots Fired 113 | . 70 43 Missed 38 | . 23 15 Hits 75 | . 47 28 Projectile 75 | . 47 28 Critical Strikes 3 | . . 3 Damage Taken 1105 | . 517 588 Core 258 | . 143 115 Absorbed by Shields . | . . . Core Remaining (%) 100 | 100 . . Volleys Fired 108 | 5 63 40 Largest 2 | 2 2 2 Hottest 110 | 40 40 110 Shots Fired 209 | 10 120 79 Gun 176 | 10 114 52 Cannon 27 | . . 27 Launcher 6 | . 6 . Special . | . . . Kinetic 191 | 10 114 67 Thermal 11 | . . 11 Explosive 6 | . 6 . Electromagnetic 1 | . . 1 Robot Hit Streak 15 | 7 11 15 Robot Miss Streak 4 | 1 4 1 Penetration Max . | . . . Secondary Targets 2 | . 2 . Max Gunslinging Chain 1 | . 1 . Shots Hit Robots 123 | 8 71 44 Core Hits 57 | 2 44 11 Critical Kills 2 | . 1 1 Critical Parts Destroyed . | . . . Critical Strikes 4 | . 1 3 Destroy 3 | . 1 2 Blast 1 | . . 1 Melee Attacks . | . . . Impact . | . . . Slashing . | . . . Piercing . | . . . Sneak Attacks . | . . . Combat Hostiles . | . . . Follow-up Attacks . | . . . Damage Inflicted 2120 | 65 1243 812 Guns 1253 | 65 573 615 Cannons 197 | . . 197 Explosions 670 | . 670 . Melee . | . . . Ramming . | . . . Kinetic 1260 | 65 573 622 Thermal 190 | . . 190 Explosive 670 | . 670 . Electromagnetic . | . . . Impact . | . . . Slashing . | . . . Piercing . | . . . Highest Corruption . | . . . Average Corruption . | . . . Corruption Purged . | . . . Corruption Blocked . | . . . Overload Shots . | . . . Overflow Damage 33 | . 33 . Projectiles . | . . . Explosions 33 | . 33 . Melee . | . . . Knockbacks 3 | . . 3 Impact . | . . . Kinetic 3 | . . 3 Secondary . | . . . Self-Inflicted Damage 23 | . 23 . Shots 1 | . 1 . Rammed . | . . . Targets Rammed . | . . . Kicked . | . . . Crushed . | . . . Highest Temperature 16 | . 16 2 Average Temperature 4 | . 4 2 Received Heat Transfer 249 | . 144 105 Siege Activations . | . . . Martial Activations . | . . . Shielding Activations . | . . . Robots Disrupted . | . . . Combat Hostiles . | . . . Robots Corrupted . | . . . Combat Hostiles . | . . . Parts Fried . | . . . Impact Corruptions . | . . . Robots Melted . | . . . Combat Hostiles . | . . . Parts Melted . | . . . Heat Transferred 237 | . . 237 Parts Sabotaged . | . . . Parts Stolen . | . . . Parts Stripped . | . . . Power Chain Reactions . | . . . Alert | -11 -10 -10 ------- Run | Yrd Mat Sub Maximum Alert Level 1 | . 1 . Low Security (%) 38 | 100 35 . Level 1 61 | . 64 . Level 2 . | . . . Level 3 . | . . . Level 4 . | . . . Level 5 . | . . . High Security . | . . . Max Security . | . . . Peak Influence 355 | 5 355 . Initial 3 | . 3 . Average 204 | . 215 . Influence Increases 689 | 5 684 . Destroy 0b10 Robot/C 300 | . 300 . Destroy 0b10 Robot/NC 55 | 5 50 . Destroy Leader 80 | . 80 . Successful Hack 85 | . 85 . Select Force Hacks 30 | . 30 . Disable Machine 60 | . 60 . Destroy Structure 34 | . 34 . Lose Combat Pursuer 45 | . 45 . Influence Decreases 689 | . 433 256 Entered New Map 126 | . 2 124 Time Decay 543 | . 411 132 Lost Part 20 | . 20 . Squads Dispatched 3 | . 3 . Investigation 2 | . 2 . Extermination . | . . . Reinforcement 1 | . 1 . Assault . | . . . Garrison . | . . . Intercept . | . . . Searches Triggered . | . . . Construction Impeded . | . . . Haulers Reinforced . | . . . Active Scanning Responses . | . . . Cargo Convoy Interrupts . | . . . Stealth | -11 -10 -10 --------- Run | Yrd Mat Sub Distress Signals 2 | . 2 . Communications Jammed . | . . . Distress Signals . | . . . Times Spotted 38 | . 29 9 Peak Tracking Total 5 | . 5 2 Tactical Retreats 1 | . 1 . Traps | -11 -10 -10 ------- Run | Yrd Mat Sub Traps Triggered 3 | . 3 . Indirectly . | . . . Trap Hack Attempts . | . . . Triggered . | . . . Disarmed . | . . . Reprogrammed . | . . . Reused . | . . . Traps Extracted . | . . . Installed . | . . . Triggered . | . . . Most Traps Carried 1 | . . 1 Machines | -11 -10 -10 ---------- Run | Yrd Mat Sub Machines Disabled 4 | . 4 . Max in Single Turn 3 | . 3 . Machines Repaired . | . . . Machines Dismantled . | . . . Machines Sabotaged . | . . . Overloaded Fab Kills . | . . . Hacking | -11 -10 -10 --------- Run | Yrd Mat Sub Machines Accessed 10 | . 10 . Terminals 8 | . 8 . Fabricators . | . . . Repair Stations 1 | . 1 . Recycling Units 1 | . 1 . Scanalyzers . | . . . Garrison Access . | . . . Total Hacks 36 | . 36 . Successful 20 | . 20 . Failed 16 | . 16 . Catastrophic 2 | . 2 . Database Lockouts . | . . . Manual 23 | . 23 . Terminals 26 | . 26 . Fabricators . | . . . Repair Stations 7 | . 7 . Recycling Units 3 | . 3 . Scanalyzers . | . . . Garrison Access . | . . . Terminal Hacks 5 | . 5 . Robot Analysis 4 | . 4 . Zone Layout 1 | . 1 . Fabricator Hacks . | . . . Repair Station Hacks 4 | . 4 . Refit 4 | . 4 . Recycling Unit Hacks 1 | . 1 . Retrieve Components 1 | . 1 . Scanalyzer . | . . . Garrison Access Hacks . | . . . Unauthorized Hacks 10 | . 10 . Terminals 9 | . 9 . Botnet 3 | . 3 . Skim 6 | . 6 . Fabricators . | . . . Repair Stations . | . . . Recycling Units 1 | . 1 . Tunnel 1 | . 1 . Scanalyzers . | . . . Garrison Access . | . . . Data Cores Recovered . | . . . Used . | . . . Hacking Detections 9 | . 9 . Full Trace Events . | . . . Feedback Events . | . . . Feedback Blocked . | . . . Robot Schematics Acquired . | . . . Robots Built . | . . . Authchips . | . . . Time . | . . . Total Robot Build Rating . | . . . Part Schematics Acquired . | . . . Parts Built . | . . . Authchips . | . . . Time . | . . . Total Part Build Rating . | . . . Part Studies Acquired . | . . . Parts Repaired . | . . . Time . | . . . Parts Recycled . | . . . Recycled Matter . | . . . Retrieved Matter . | . . . Retrieved Components 2 | . 2 . Parts Scanalyzed . | . . . Part Schematics Acquired . | . . . Parts Damaged . | . . . Bothacking | -11 -10 -10 ------------ Run | Yrd Mat Sub Used RIF Installer . | . . . Robots Hacked . | . . . Non-combat . | . . . Combat . | . . . Robot Hacks Applied . | . . . Relay Couplers Released . | . . . Fabnet Peak Effective % . | . . . Robots Rewired . | . . . Allies Hacked . | . . . Hacks Repelled . | . . . Allies | -11 -10 -10 -------- Run | Yrd Mat Sub Total Allies . | . . . Largest Group . | . . . Highest-Rated Group . | . . . Highest-Rated Ally . | . . . Total Orders . | . . . Ally Attacks . | . . . Total Damage . | . . . Kills . | . . . Allies Corrupted . | . . . Allies Melted . | . . . Intel | -11 -10 -10 ------- Run | Yrd Mat Sub Active Infowar (turns) 1742 | 3 721 1018 Seismic 1742 | 3 721 1018 Robot Analysis Total 4 | . 4 . Derelict Logs Recovered . | . . . Drone Launches . | . . . Drone Recoveries . | . . . Exploration | -11 -10 -10 ------------- Run | Yrd Mat Sub Turns Passed 2452 | 59 1094 1299 Spaces Moved 1469 | 34 622 813 Core 2 | 2 . . Treads . | . . . Legs . | . . . Wheels 1467 | 32 622 813 Hover . | . . . Flight . | . . . Fastest Speed 50 | 50 100 135 Average Speed 132 | 97 130 135 Slowest Speed 195 | 100 195 150 Overloaded Moves . | . . . Propulsion Burnouts . | . . . Robots Hopped . | . . . Potential Cave-ins . | . . . Cave-ins Triggered . | . . . Exploration Rate (%) 51 | 4 98 51 Regions Visited 2 Branch Regions 1 Pre-discovered Areas 2 | . 2 . Known Exits Taken 1 | . 1 . Unknown Exits Taken 1 | 1 . . Scrap Searched 8 | . . 8 Spaces Dug 4 | . 4 . Terrain Destroyed 35 | . 34 1 Melee . | . . . Projectile 1 | . . 1 AOE 34 | . 34 . Terrain Rammed . | . . . Walls Destroyed . | . . . Machines Disabled . | . . . Actions | -11 -10 -10 --------- Run | Yrd Mat Sub Total 1791 | 48 808 935 Wait 119 | 2 70 47 Move 1467 | 33 621 813 Hop . | . . . Pick Up 24 | 1 16 7 Fast Attach 14 | 7 2 5 Attach 7 | . 2 5 Detach 6 | . 4 2 Swap 26 | . 17 9 Drop 20 | . 13 7 Fire 108 | 5 63 40 Melee . | . . . Ram . | . . . Kick . | . . . Crush . | . . . Escape Stasis . | . . . Rewire . | . . . Trap . | . . . Miscellaneous . | . . . Route ------- -11/Scrapyard -10/Materials (discovered 6 exits: *Mat x3 / [*Min x2] / *Sub) -10/Subcaves (discovered 3 exits: *Mat x2 / Rec) History --------- Turn | Location | Event 15 | -11/Scrapyard | Discovered new exit (range 15) 60 | -11/Scrapyard | Entered Materials 275 | -10/Materials | Discovered new exit (range 5) 317 | -10/Materials | Build established: Mutant 604 | -10/Materials | Core integrity fell below 50% 774 | -10/Materials | Discovered new exit (range 5) 777 | -10/Materials | Learned location of 2 exits from Subcaves 822 | -10/Materials | Learned location of Subcaves (-10) 853 | -10/Materials | Discovered new exit (range 4) 876 | -10/Materials | Identified exit to Materials 876 | -10/Materials | Identified exit to Subcaves 949 | -10/Materials | Learned 4 Recycling zone layouts 1009 | -10/Materials | Discovered new exit (range 11) 1154 | -10/Materials | Entered Subcaves 1155 | -10/Subcaves | Identified exit to Recycling 1155 | -10/Subcaves | Identified exit to Materials 1539 | -10/Subcaves | Shifting Twisted Machinery released Mak. Light Armor Plating 1551 | -10/Subcaves | Shifting Twisted Machinery released Barrage Gun 1563 | -10/Subcaves | Discovered exit to Materials (range 11) 1589 | -10/Subcaves | Disturbed a concealed Subdweller 1823 | -10/Subcaves | Core integrity fell below 20% 1862 | -10/Subcaves | Lost 3 parts (1p1u1w) 2326 | -10/Subcaves | A swath of the cavern ceiling suddenly collapsed 2416 | -10/Subcaves | Disturbed a concealed Subdweller 2453 | -10/Subcaves | Destroyed by Y-45 Defender with Beam Rifle Last Messages --------------- 02206_ Sub. Power Source shoots sparks and powers down. 02206_ Dropped Broken Sub. Power Source. A swath of the cavern ceiling suddenly collapses. 02412_ Searching scrap... 02412_ Found Sub. Beam Cannon. 02412_ Found Riot Gun. 02412_ Found 38 Matter. 02413_ Acquired 38 matter. 02414_ Dropped Battle Cannon. 02415_ Acquired Sub. Beam Cannon. 02416_ 4C-4QF(R) angrily emerges from the Twisted Machinery. 02416_ 4C-4QF(R) destroyed. 02421_ Searching scrap... 02421_ Found Mak. Leg. 02421_ Found 50 Matter. 02422_ Acquired 50 matter. 02425_ Acquired Sub. Laser. Map ----- +----------------------------------------------------+ | ??????????????????????????????????????????????? | | ??????????????????????????????????????????????? | | ??????????????????????????????????????????????? | | ??????????????????????????????????????????????? | | ??????????????????????????????????????????????? | | ??????????????????????????????????????????????? | | ??????????????????????????????????????????????? | | ??????????????????????????????????????????????? | | ??????????????????????????????????????????????? | | ??????????????????????????????????????????????? | | ??????????????????????????????????????????????? | | ??????????????????????????????????????????????? | | ??????????????????????????????????????????????? | | ?????????????????????????????? ??????????????? | | ????????????????????????????? ?????????????? | | ???????????????????????????? ??????????????? | | ???????????????????????????? #??????????????? | | ??????????????????????????? #??????????????? | | ????????????????????????### #??????????????? | | ???????????????????????? ???????????????? | | ??????????????????????? ????????????????? | | ??????????????????????? #?????????????????? | | ??????????????????????? #??????????????????? | | ?????????????????????## ##?????????????????? | | ?????????????????##### ### #???????????? | | ????????????????## # @ #????????? | | ????????????????# #????????? | | ????????????????# # ????????? | | ????????????????# # ### ?????????? | | ????????????????# ###?? ?????????? | | ????????????????# ##????? Y ??????????? | | ???????????????## ##?????? ??????????? | | ?????????####?## ##?????? ## ??????????? | | ?????????#*!### ###?????##?? #???????????? | | ?????????#& #&#< ####??????? ???????????? | | ?????????##=&][ ## ##??????????????????? | | ?????????# &"##" #?# #??????????????????? | | ?????????#&%## ##?# #??????????????????? | | ?????????####### ### ##?????????????????? | | ???????????????## #?????????????????? | | ???????????????## #?????????????????? | | ???????????????# ##?????????????????? | | ???????????????### ##??????????????????? | | ????????????????## # ##???????????????????? | | ????????????????# ## #????????????????????? | | ????????????????## ##? #????????????????????? | | ????????????????# ##?? ##???????????????????? | | ????????????????## #?? ###?????????????????? | | ?????????????????# ## ####??????????????? | | ?????????????????# # ? #??????????????? | +----------------------------------------------------+ Best States ------------- Heat Dissipation 25 Energy Generation 15 Energy Capacity 250 Matter Stores 300 Matter Capacity 300 Sight Range 16 Terrain Scan Density 10 Armor Coverage 150 Evasion (%) 40 Item Schematics ----------------- None Robot Schematics ------------------ None Fabricated ------------ Nothing Repaired ---------- Nothing Studied --------- None Alien Tech Used ----------------- None Achievements -------------- None Challenges ------------ None Game ------ Seed DeflectorHeavySuite Manual? 0 Play Time 00:15:54 Cumulative 468.7 hours Start 2026.01.22 @ 16:23:18 End 2026.01.22 @ 16:38:06 Sessions 1 Manual Loads 0 Difficulty Rogue Special Mode None Game No. 164 Rogue 164 Adventurer 0 Explorer 0 Win Type - Total 13 Types 6/0/3/1/0/0/0/1/0/2 Lore% 89 Gallery% 84 Achievement% 72 Wizard Run 0 Options --------- Layout 1 ASCII 0 Keyboard 0 Movement Mouse Keybinds 0 Fullscreen 2 Font 32/SmallcapsGlow Map View 50x35 Zoom Use 0% Tactical HUD 1 Map Filters NONE Filters NONE Steam 1 RUN: 9df9e9a5-49f6-4be0-8e32-9e38c80f8cf9